fUSD/lending_fUSD_20260524
["ID","MTS","AMOUNT","RATE_DAILY","PERIOD"]
[422876301,1779557449000,-356.67052526,0.0003009,7]
[422876239,1779557449000,-162.0,0.0003001,30]
[422876233,1779557449000,-200.0,0.0003,2]
[422876241,1779557449000,-162.0,0.0003001,30]
[422876253,1779557449000,-340.21276669,0.0003009,7]
[422876243,1779557449000,-1000.0,0.0003002,15]
[422876251,1779557449000,-174.39080887,0.0003009,7]
[422876261,1779557449000,-349.54565472,0.0003009,7]
[422876257,1779557449000,-348.68550025,0.0003009,5]
[422876247,1779557449000,-947.0,0.00030075,7]
[422876255,1779557449000,-167.18836342,0.0003009,7]
[422876259,1779557449000,-318.53691784,0.0003009,7]
[422876249,1779557449000,-365.19905099,0.0003009,7]
[422876263,1779557449000,-617.64996649,0.0003009,7]
[422876265,1779557449000,-506.64634865,0.0003009,7]
[422876245,1779557449000,-1000.0,0.00030069,60]
[422876280,1779557449000,-320.6294177,0.0003009,7]
[422876278,1779557449000,-201.27701203,0.0003009,7]
[422876294,1779557449000,-199.96381516,0.0003009,7]
[422876292,1779557449000,-206.287179,0.0003009,2]
[422876290,1779557449000,-201.89414847,0.0003009,7]
[422876288,1779557449000,-338.47105436,0.0003009,7]
[422876286,1779557449000,-392.52956527,0.0003009,7]
[422876305,1779557449000,-309.16817569,0.0003009,7]
[422876274,1779557449000,-403.4651044,0.0003009,7]
[422876276,1779557449000,-312.4437556,0.0003009,7]
[422876284,1779557449000,-163.6538659,0.0003009,5]
[422876282,1779557449000,-326.29193342,0.0003009,7]
[422876270,1779557449000,-322.34624569,0.0003009,7]
[422876267,1779557449000,-350.74336663,0.0003009,7]
[422876272,1779557449000,-623.05230247,0.0003009,7]
[422876355,1779557450000,-151.0,0.0003013,2]
[422876345,1779557450000,-500.0,0.0003013,60]
[422876346,1779557450000,-200.0,0.0003013,2]
[422876342,1779557450000,-1000.0,0.00030129,7]
[422876344,1779557450000,-135364.94158791,0.0003013,7]
[422876343,1779557450000,-150.0,0.00030129,2]
[422876347,1779557450000,-300.0,0.0003013,7]
[422876348,1779557450000,-2161.36,0.0003013,2]
[422876349,1779557450000,-24359.12933554,0.0003013,30]
[422876354,1779557450000,-209.19230367,0.0003013,2]
[422876350,1779557450000,-499.68258764,0.0003013,120]
[422876351,1779557450000,-1091.81797323,0.0003013,2]
[422876353,1779557450000,-407.6997361,0.0003013,120]
[422876356,1779557450000,-14084.37582777,0.0003013,2]
[422876352,1779557450000,-200.0,0.0003013,2]
[422876357,1779557450000,-644.7454367,0.0003013,2]
[422876359,1779557450000,-329406.13047261,0.0003013,7]
[422876360,1779557450000,-38912.34139844,0.0003013,7]
[422876361,1779557450000,-371.93244102,0.0002758,7]
[422876358,1779557450000,-205.10860812,0.0003013,2]
[422876366,1779557739000,-935.536,0.00010437,2]
[422876370,1779557797000,-500.0,0.00010649,2]
[422876369,1779557797000,-150.0,0.00010649,2]
[422876368,1779557797000,-180.0,0.00010648,2]
[422876372,1779557797000,-478.62359773,0.00010649,2]
[422876367,1779557797000,-1200.0,0.00010648,2]
[422876371,1779557797000,-500.0,0.00010649,2]
[422876373,1779557797000,-500.0,0.00010649,2]
[422876374,1779557797000,-360.14053284,0.00010649,2]
[422876376,1779557797000,-69978.42339765,0.0001065,2]
[422876375,1779557797000,-352.81247178,0.00010649,2]
[422876377,1779557805000,-200.0,0.0001065,2]
[422876381,1779558529000,150.95230576,0.00016438,30]
[422876382,1779558530000,150.95230576,0.00016438,30]
[422876387,1779558631000,-732.37982675,0.000104,2]
[422876390,1779558631000,-4465.463,0.0001055,2]
[422876389,1779558631000,-748.429,0.00010437,2]
[422876391,1779558631000,-1198.72765141,0.0001065,2]
[422876392,1779558631000,-2217.8025301,0.0001065,2]
[422876393,1779558631000,-563.02382865,0.0001065,2]
[422876388,1779558631000,-1562.2578133,0.000104,2]
[422876652,1779558639000,-377.44491988,0.0001065,2]
[422876647,1779558639000,-7200.48412773,0.0001065,2]
[422876783,1779558640000,-2929.23218453,0.000153,2]
[422876768,1779558640000,-166.18017885,0.00014102,2]
[422876766,1779558640000,-161.37649509,0.00014067,2]
[422876770,1779558640000,-197.80820295,0.00014484,2]
[422876772,1779558640000,-166.66,0.0001491,2]
[422876763,1779558640000,-250.0,0.00014,2]
[422876773,1779558640000,-2929.23218453,0.00015,2]
[422876781,1779558640000,-166.66,0.00015224,2]
[422876777,1779558640000,-160.0,0.0001518,2]
[422876794,1779558640000,-2929.23218453,0.000158,2]
[422876787,1779558640000,-2929.23218453,0.000155,2]
[422876785,1779558640000,-244.85307008,0.00015467,2]
[422876775,1779558640000,-208.78535381,0.0001518,2]
[422876789,1779558640000,-166.66,0.00015538,2]
[422876791,1779558640000,-2929.23218453,0.000156,2]
[422876793,1779558640000,-2161.43,0.00015747,2]
[422876760,1779558640000,-4947.0,0.00013942,2]
[422876796,1779558640000,-150.0,0.00015831,2]
[422876802,1779558640000,-300.0,0.00016,2]
[422876779,1779558640000,-2929.23218453,0.000152,2]
[422876762,1779558640000,-300.45976613,0.00014,2]
[422876741,1779558640000,-500.0,0.00013699,2]
[422876758,1779558640000,-9469.0,0.00013728,2]
[422876800,1779558640000,-2929.23218453,0.000159,2]
[422876716,1779558640000,-693554.84724458,0.0001065,2]
[422876718,1779558640000,-215.31523495,0.0001079,2]
[422876720,1779558640000,-197.80820298,0.000109,2]
[422876731,1779558640000,-2500.0,0.00011481,2]
[422876722,1779558640000,-161.3764951,0.00011099,2]
[422876733,1779558640000,-2500.0,0.00011481,2]
[422876739,1779558640000,-3414.0,0.00013583,2]
[422876735,1779558640000,-2500.0,0.00011481,2]
[422876737,1779558640000,-2543.68717935,0.00011481,2]
[422876724,1779558640000,-168.69113263,0.00011099,2]
[422876729,1779558640000,-2500.0,0.00011481,2]
[422876727,1779558640000,-193.0,0.00011481,2]
[422876743,1779558640000,-500.0,0.00013699,2]
[422876745,1779558640000,-500.0,0.00013699,2]
[422876747,1779558640000,-500.0,0.00013699,2]
[422876751,1779558640000,-500.0,0.00013699,2]
[422876754,1779558640000,-297.90722004,0.00013699,2]
[422876749,1779558640000,-500.0,0.00013699,2]
[422876756,1779558640000,-150.99,0.00013699,2]
[422876798,1779558640000,-166.66,0.00015851,2]
[422876808,1779558640000,-1066.40456519,0.00016109,2]
[422876804,1779558640000,-988.16,0.00016024,2]
[422876871,1779558640000,-1795.0,0.00016438,2]
[422876860,1779558640000,-8216.53,0.00016116,2]
[422876867,1779558640000,-2929.23218453,0.000164,2]
[422876852,1779558640000,-1062.05203305,0.00016109,2]
[422876869,1779558640000,-200.0,0.0001643,2]
[422876856,1779558640000,-1071.24562743,0.00016109,2]
[422876858,1779558640000,-1112.05034928,0.00016109,2]
[422876875,1779558640000,-220.99,0.00017017,2]
[422876850,1779558640000,-1145.71358809,0.00016109,2]
[422876854,1779558640000,-1146.63581728,0.00016109,2]
[422876877,1779558640000,-5000.0,0.00017335,2]
[422876880,1779558640000,-440.36876987,0.00017418,2]
[422876881,1779558640000,-1351.0,0.00017435,2]
[422876883,1779558640000,-927.0,0.00017435,2]
[422876886,1779558640000,-625.0,0.00017435,2]
[422876888,1779558640000,-1271.0,0.00017435,2]
[422876890,1779558640000,-1224.0,0.00017435,2]
[422876892,1779558640000,-150.0,0.00017435,2]
[422876806,1779558640000,-2929.23218453,0.000161,2]
[422876863,1779558640000,-2000.0,0.00016171,2]
[422876873,1779558640000,-166.66,0.00016479,2]
[422876865,1779558640000,-2929.23218453,0.000162,2]
[422876848,1779558640000,-1097.51429465,0.00016109,2]
[422876894,1779558640000,-150.0,0.00017435,2]
[422876817,1779558640000,-1002.55972646,0.00016109,2]
[422876813,1779558640000,-1142.18881383,0.00016109,2]
[422876811,1779558640000,-1035.45973399,0.00016109,2]
[422876815,1779558640000,-1059.73966653,0.00016109,2]
[422876810,1779558640000,-1060.67290604,0.00016109,2]
[422876861,1779558640000,-166.66,0.00016165,2]
[422876821,1779558640000,-1118.35816465,0.00016109,2]
[422876825,1779558640000,-1141.41506813,0.00016109,2]
[422876823,1779558640000,-1094.92434962,0.00016109,2]
[422876819,1779558640000,-1058.69386274,0.00016109,2]
[422876835,1779558640000,-1077.4447211,0.00016109,2]
[422876840,1779558640000,-1063.75194205,0.00016109,2]
[422876839,1779558640000,-1032.79105558,0.00016109,2]
[422876830,1779558640000,-1138.5685543,0.00016109,2]
[422876833,1779558640000,-1079.6950179,0.00016109,2]
[422876837,1779558640000,-1035.24146897,0.00016109,2]
[422876846,1779558640000,-1081.76116426,0.00016109,2]
[422876844,1779558640000,-1039.06148993,0.00016109,2]
[422876842,1779558640000,-1079.16138851,0.00016109,2]
[422876827,1779558640000,-1068.62476876,0.00016109,2]
[422876921,1779558641000,-483.2,0.00019229,2]
[422876908,1779558641000,-483.2,0.00017859,2]
[422876904,1779558641000,-3635.0,0.00017435,2]
[422876898,1779558641000,-230.786,0.00017435,2]
[422876900,1779558641000,-418.0,0.00017435,2]
[422876896,1779558641000,-250.0,0.00017435,2]
[422876912,1779558641000,-2000.0,0.00018193,2]
[422876902,1779558641000,-245.129,0.00017435,2]
[422876915,1779558641000,-502.0,0.00018259,5]
[422876906,1779558641000,-161.37649509,0.00017478,2]
[422876910,1779558641000,-350.0,0.00018,2]
[422876919,1779558641000,-1795.0,0.0001841,2]
[422876914,1779558641000,-1050.0,0.00018259,5]
[422876913,1779558641000,-813.0,0.00018259,5]
[422876923,1779558641000,-191.87295524,0.00019825,2]
[422876925,1779558641000,-151.0,0.00019825,2]
[422876927,1779558641000,-151.0,0.00019825,2]
[422876929,1779558641000,-151.0,0.00019825,2]
[422876931,1779558641000,-151.0,0.00019825,2]
[422876941,1779558641000,-151.0,0.00019825,2]
[422876917,1779558641000,-197.80820295,0.00018304,2]
[422877219,1779558642000,-152.0,0.00022117,2]
[422877229,1779558642000,-152.0,0.00022117,2]
[422877216,1779558642000,-152.0,0.00022117,2]
[422877231,1779558642000,-152.0,0.00022117,2]
[422877212,1779558642000,-152.0,0.00022117,2]
[422877214,1779558642000,-152.0,0.00022117,2]
[422877225,1779558642000,-152.0,0.00022117,2]
[422877235,1779558642000,-152.0,0.00022117,2]
[422877233,1779558642000,-152.0,0.00022117,2]
[422877249,1779558642000,-1795.0,0.00022353,2]
[422877256,1779558642000,-151.0,0.00022502,2]
[422877250,1779558642000,-151.0,0.00022392,2]
[422877254,1779558642000,-2000.0,0.000225,2]
[422877252,1779558642000,-151.0,0.00022447,2]
[422877227,1779558642000,-152.0,0.00022117,2]
[422877151,1779558642000,-17081.25,0.00022,2]
[422877242,1779558642000,-2000.0,0.00022236,2]
[422877245,1779558642000,-151.0,0.00022282,2]
[422877241,1779558642000,-151.0,0.00022227,2]
[422877246,1779558642000,-151.0,0.00022337,2]
[422877258,1779558642000,-487.0,0.00022548,2]
[422877237,1779558642000,-197.80820295,0.00022123,2]
[422877260,1779558642000,-487.0,0.00022548,2]
[422877202,1779558642000,-151.0,0.00022117,2]
[422877206,1779558642000,-623.58710447,0.00022117,2]
[422877153,1779558642000,-1491.0,0.00022,2]
[422877162,1779558642000,-181.08010149,0.00022117,2]
[422877160,1779558642000,-181.08010149,0.00022117,2]
[422877155,1779558642000,-2080.17592889,0.00022017,2]
[422877158,1779558642000,-200.0,0.00022017,2]
[422877164,1779558642000,-743.50770149,0.00022117,2]
[422877174,1779558642000,-200.0,0.00022117,2]
[422877166,1779558642000,-279.9045709,0.00022117,2]
[422877170,1779558642000,-1235.18214925,0.00022117,2]
[422877168,1779558642000,-174.61919141,0.00022117,2]
[422877210,1779558642000,-152.0,0.00022117,2]
[422877172,1779558642000,-3597.61791046,0.00022117,2]
[422877183,1779558642000,-8260.13072243,0.00022117,2]
[422877188,1779558642000,-500.0,0.00022117,2]
[422877196,1779558642000,-181.08010151,0.00022117,2]
[422877194,1779558642000,-181.08010149,0.00022117,2]
[422877190,1779558642000,-578.20924308,0.00022117,2]
[422877192,1779558642000,-359.76179106,0.00022117,2]
[422877198,1779558642000,-181.08010151,0.00022117,2]
[422877200,1779558642000,-152.0,0.00022117,2]
[422877204,1779558642000,-152.0,0.00022117,2]
[422877208,1779558642000,-152.0,0.00022117,2]
[422877185,1779558642000,-599.60298507,0.00022117,2]
[422877262,1779558642000,-893.04,0.00022548,2]
[422877222,1779558642000,-152.0,0.00022117,2]
[422877275,1779558642000,-181.08010149,0.00022665,2]
[422877341,1779558642000,-418.0,0.00023435,2]
[422877343,1779558642000,-3635.0,0.00023435,2]
[422877330,1779558642000,-927.0,0.00023435,2]
[422877326,1779558642000,-323.74929476,0.00023213,2]
[422877332,1779558642000,-625.0,0.00023435,2]
[422877346,1779558642000,-9703.24,0.00023574,2]
[422877348,1779558642000,-2319.72410669,0.00023661,2]
[422877352,1779558642000,-194.72792766,0.00023761,2]
[422877363,1779558642000,-324.0,0.00024,2]
[422877355,1779558642000,-1377.42282658,0.00023761,2]
[422877367,1779558642000,-334.0,0.00024,2]
[422877350,1779558642000,-202.35287585,0.00023661,2]
[422877359,1779558642000,-200.0,0.00023867,2]
[422877357,1779558642000,-200.0,0.00023761,2]
[422877370,1779558642000,-484.0,0.00024,2]
[422877372,1779558642000,-414.0,0.00024,2]
[422877361,1779558642000,-187.0,0.00024,2]
[422877366,1779558642000,-889.0,0.00024,2]
[422877371,1779558642000,-500.0,0.00024,2]
[422877376,1779558642000,-10284.8151,0.00024064,2]
[422877374,1779558642000,-1491.0,0.00024,2]
[422877378,1779558642000,-84.50999134,0.00024209,2]
[422877264,1779558642000,-266.32626379,0.00022557,2]
[422877323,1779558642000,-200.0,0.00023213,2]
[422877339,1779558642000,-150.0,0.00023435,2]
[422877238,1779558642000,-151.0,0.00022172,2]
[422877336,1779558642000,-1224.0,0.00023435,2]
[422877279,1779558642000,-1280.88388877,0.00022665,2]
[422877277,1779558642000,-290.26104002,0.00022665,2]
[422877281,1779558642000,-200.0,0.00022665,2]
[422877283,1779558642000,-187.78006524,0.00022665,2]
[422877268,1779558642000,-200.0,0.00022565,2]
[422877266,1779558642000,-2157.14243826,0.00022565,2]
[422877287,1779558642000,-324.0,0.00023,2]
[422877271,1779558642000,-187.78006524,0.00022665,2]
[422877273,1779558642000,-771.01748644,0.00022665,2]
[422877285,1779558642000,-187.0,0.00023,2]
[422877289,1779558642000,-889.0,0.00023,2]
[422877334,1779558642000,-1271.0,0.00023435,2]
[422877291,1779558642000,-334.0,0.00023,2]
[422877303,1779558642000,-200.0,0.00023074,2]
[422877305,1779558642000,-2236.95670847,0.00023113,2]
[422877307,1779558642000,-200.0,0.00023113,2]
[422877295,1779558642000,-484.0,0.00023,2]
[422877309,1779558642000,-323.74929475,0.00023213,2]
[422877298,1779558642000,-414.0,0.00023,2]
[422877311,1779558642000,-510.85497257,0.00023213,2]
[422877313,1779558642000,-187.78006524,0.00023213,2]
[422877315,1779558642000,-192.31897881,0.00023213,2]
[422877320,1779558642000,-1328.27659266,0.00023213,2]
[422877301,1779558642000,-1491.0,0.00023,2]
[422877456,1779558643000,-200.0,0.00024309,2]
[422877459,1779558643000,-313.21,0.00024658,8]
[422877458,1779558643000,-777.0,0.00024437,2]
[422877462,1779558643000,-306.43699999,0.00024658,2]
[422877465,1779558643000,-2494.55939288,0.00024757,2]
[422877464,1779558643000,-982.0,0.00024707,2]
[422877463,1779558643000,-200.0,0.0002466,2]
[422877466,1779558643000,-500.0,0.00024856,2]
[422877467,1779558643000,-599.60298507,0.00024856,2]
[422877461,1779558643000,-1172.26,0.00024658,2]
[422877468,1779558643000,-646.65982734,0.00024856,2]
[422877429,1779558643000,-201.93286098,0.00024309,2]
[422877455,1779558643000,-968.49298334,0.00024309,2]
[422877454,1779558643000,-677.0,0.00022392,7]
[422877452,1779558643000,-419.0,0.00022392,7]
[422877423,1779558643000,-634.0,0.00024231,2]
[422877427,1779558643000,-161.37649509,0.00024299,2]
[422877425,1779558643000,-2000.0,0.00024257,2]
[422877434,1779558643000,-420.24775119,0.00024309,2]
[422877421,1779558643000,-2321.04390729,0.00024209,2]
[422877432,1779558643000,-39.64673664,0.00024309,2]
[422877419,1779558643000,-962.0,0.00022392,7]
[422877469,1779558643000,-209.40437684,0.00024857,2]
[422877457,1779558643000,-1795.0,0.00024324,2]
[422877472,1779558643000,-200.0,0.00024857,2]
[422877460,1779558643000,-1000.0,0.00024658,2]
[422877480,1779558643000,-189.65766967,0.00025,2]
[422877506,1779558643000,-20311.9891364,0.00025786,2]
[422877504,1779558643000,-2317.67,0.00025786,2]
[422877502,1779558643000,-920.0,0.00025637,2]
[422877495,1779558643000,-200.0,0.00025453,2]
[422877491,1779558643000,-2262.95659242,0.00025397,2]
[422877489,1779558643000,-306.43699999,0.00025266,2]
[422877492,1779558643000,-217.15233878,0.00025405,2]
[422877494,1779558643000,-200.0,0.00025405,2]
[422877488,1779558643000,-200.0,0.00025256,2]
[422877496,1779558643000,-306.43699999,0.00025571,2]
[422877486,1779558643000,-1496.0,0.00025,2]
[422877493,1779558643000,-1536.04360648,0.00025405,2]
[422877490,1779558643000,-2586.85809042,0.00025305,2]
[422877498,1779558643000,-1000.0,0.000256,2]
[422877487,1779558643000,-920.0,0.00025082,2]
[422877476,1779558643000,-500.0,0.00024984,4]
[422877483,1779558643000,-337.0,0.00025,2]
[422877482,1779558643000,-903.0,0.00025,2]
[422877485,1779558643000,-417.0,0.00025,2]
[422877478,1779558643000,-551.89,0.00024984,4]
[422877475,1779558643000,-306.43699999,0.00024962,2]
[422877505,1779558643000,-997.56,0.00025786,2]
[422877484,1779558643000,-484.0,0.00025,2]
[422877479,1779558643000,-410.0,0.00024987,5]
[422877471,1779558643000,-1481.2378076,0.00024857,2]
[422877481,1779558643000,-332.56856536,0.00025,2]
[422877508,1779558646000,-931.0,0.00017435,2]
[422877507,1779558646000,-210.59,0.000111,2]
[422877511,1779558646000,-4924.82636287,0.00025786,2]
[422877509,1779558646000,-931.0,0.00020435,2]
[422877510,1779558646000,-931.0,0.00023435,2]
[422877517,1779558660000,150.0,0.00010437,7]
[422877531,1779559831000,-1641.42458806,0.0001,2]
[422877530,1779559831000,-413.2599,0.0001,2]
[422877529,1779559831000,-523.164,0.0001,2]
[422877526,1779559831000,-161.49221552,0.0001,2]
[422877528,1779559831000,-508.45057398,0.0001,2]
[422877527,1779559831000,-559.92859259,0.0001,2]
[422877525,1779559831000,-1124.0,9.999e-05,2]
[422877537,1779559837000,-1033.99012985,0.0001,2]
[422877539,1779559837000,-3309.14045596,0.0001,2]
[422877538,1779559837000,-10418.30431853,0.0001,2]
[422877842,1779559840000,-500.0,0.00013627,2]
[422877784,1779559840000,-378.2,0.0001,2]
[422877832,1779559840000,-598.743,0.00013528,2]
[422877846,1779559840000,-500.0,0.00013627,2]
[422877838,1779559840000,-500.0,0.00013627,2]
[422877834,1779559840000,-168.69113263,0.00013528,2]
[422877836,1779559840000,-161.3764951,0.00013599,2]
[422877818,1779559840000,-195.0,0.00011,2]
[422877820,1779559840000,-2500.0,0.00011304,2]
[422877816,1779559840000,-193.0,0.00011,2]
[422877814,1779559840000,-2500.0,0.00011,2]
[422877828,1779559840000,-215.0259264,0.00011366,2]
[422877826,1779559840000,-2500.0,0.00011304,2]
[422877812,1779559840000,-110093.73398391,0.0001,2]
[422877840,1779559840000,-535.03651841,0.00013627,2]
[422877824,1779559840000,-2500.0,0.00011304,2]
[422877830,1779559840000,-2500.0,0.00013528,2]
[422877849,1779559840000,-500.0,0.00013627,2]
[422877822,1779559840000,-2500.0,0.00011304,2]
[422877852,1779559840000,-500.0,0.00013627,2]
[422877850,1779559840000,-500.0,0.00013627,2]
[422877887,1779559840000,-351796.61442245,0.00013628,2]
[422877885,1779559840000,-246.96873025,0.00013627,2]
[422877883,1779559840000,-602.09837299,0.00013627,2]
[422877881,1779559840000,-499.99999999,0.00013627,2]
[422877871,1779559840000,-500.0,0.00013627,2]
[422877879,1779559840000,-500.0,0.00013627,2]
[422877875,1779559840000,-500.0,0.00013627,2]
[422877877,1779559840000,-500.0,0.00013627,2]
[422877844,1779559840000,-500.0,0.00013627,2]
[422877873,1779559840000,-500.0,0.00013627,2]
[422877863,1779559840000,-500.0,0.00013627,2]
[422877865,1779559840000,-500.0,0.00013627,2]
[422877867,1779559840000,-552.73492296,0.00013627,2]
[422877861,1779559840000,-500.0,0.00013627,2]
[422877857,1779559840000,-500.0,0.00013627,2]
[422877858,1779559840000,-500.0,0.00013627,2]
[422877869,1779559840000,-500.0,0.00013627,2]
[422877855,1779559840000,-500.0,0.00013627,2]
[422878183,1779559842000,-13582.93701862,0.00013628,2]
[422878259,1779559843000,-2823.0,0.0001377,2]
[422878254,1779559843000,-208.78535381,0.00013727,2]
[422878242,1779559843000,-500.0,0.00013699,2]
[422878253,1779559843000,-215.31523495,0.00013721,2]
[422878257,1779559843000,-7317.0,0.00013744,2]
[422878244,1779559843000,-500.0,0.00013699,2]
[422878248,1779559843000,-500.0,0.00013699,2]
[422878250,1779559843000,-160.0,0.00013721,2]
[422878240,1779559843000,-500.0,0.00013699,2]
[422878238,1779559843000,-297.90722004,0.00013699,2]
[422878269,1779559843000,-166.66,0.00014083,2]
[422878236,1779559843000,-236.11350259,0.00013699,2]
[422878193,1779559843000,-263.88649741,0.00013699,2]
[422878246,1779559843000,-500.0,0.00013699,2]
[422878272,1779559843000,-166.18017885,0.00014252,2]
[422878191,1779559843000,-166.66,0.00013699,2]
[422878276,1779559843000,-166.66,0.00014467,2]
[422878291,1779559843000,-2929.23218453,0.000155,2]
[422878274,1779559843000,-166.66,0.00014275,2]
[422878289,1779559843000,-244.85307008,0.00015467,2]
[422878287,1779559843000,-150.99,0.0001531,2]
[422878285,1779559843000,-2929.23218453,0.000153,2]
[422878296,1779559843000,-3365.49,0.00015525,2]
[422878293,1779559843000,-150.0,0.00015525,2]
[422878278,1779559843000,-166.66,0.00014659,2]
[422878263,1779559843000,-3414.0,0.00013828,2]
[422878261,1779559843000,-4276.0,0.00013802,2]
[422878280,1779559843000,-2929.23218453,0.00015,2]
[422878265,1779559843000,-166.66,0.00013891,2]
[422878267,1779559843000,-250.0,0.00014,2]
[422878282,1779559843000,-2929.23218453,0.000152,2]
[422878298,1779559843000,-1487.27442578,0.000156,2]
[422878717,1779559846000,-504.99998448,0.000156,2]
[422878710,1779559846000,-3257.9978,0.00013527,2]
[422879163,1779560321000,500.0,0.00028075,120]
[422879164,1779560361000,-12745.0,0.00011474,2]
[422879166,1779560584000,156.56,7.187e-05,2]
[422879169,1779560936000,-247.99619053,0.0001,2]
[422879170,1779560940000,1000.0,0.00028074,120]
[422879190,1779561032000,-917.0323763,0.00011468,2]
[422879196,1779561032000,-1016.56118458,0.00012277,2]
[422879175,1779561032000,-300.0,0.0001097,2]
[422879194,1779561032000,-1680.0,0.00012067,2]
[422879195,1779561032000,-250.0,0.00012068,2]
[422879197,1779561032000,-463.59176848,0.0001263,2]
[422879198,1779561032000,-169.49,0.00012972,2]
[422879204,1779561032000,-17886.0,0.00013457,2]
[422879201,1779561032000,-2161.43,0.00013206,2]
[422879199,1779561032000,-1734.36,0.00013087,2]
[422879200,1779561032000,-171.55,0.00013128,2]
[422879203,1779561032000,-1734.36,0.00013414,2]
[422879202,1779561032000,-2351.0,0.00013273,2]
[422879188,1779561032000,-5077.62923181,0.00011468,2]
[422879179,1779561032000,-2500.0,0.00010971,2]
[422879189,1779561032000,-1541.26417749,0.00011468,2]
[422879186,1779561032000,-150.0,0.00011467,2]
[422879192,1779561032000,-208.78535381,0.00011593,2]
[422879191,1779561032000,-5848.5964344,0.00011474,2]
[422879182,1779561032000,-192.6211001,0.00011465,2]
[422879185,1779561032000,-3814.99293635,0.00011465,2]
[422879184,1779561032000,-2985.9775101,0.00011465,2]
[422879183,1779561032000,-2475.65324555,0.00011465,2]
[422879181,1779561032000,-2500.0,0.00011,2]
[422879176,1779561032000,-1200.0,0.0001097,2]
[422879178,1779561032000,-2500.0,0.00010971,2]
[422879177,1779561032000,-2500.0,0.00010971,2]
[422879180,1779561032000,-2500.0,0.00010971,2]
[422879205,1779561032000,-7484.0,0.00013484,2]
[422879193,1779561032000,-277.81286135,0.00011919,2]
[422879207,1779561032000,-2000.0,0.00013652,2]
[422879229,1779561032000,-500.0,0.00014999,2]
[422879213,1779561032000,-1734.36,0.00014395,2]
[422879236,1779561032000,-361.44980121,0.00014999,2]
[422879239,1779561032000,-0.71414223,0.00014999,2]
[422879235,1779561032000,-138.55019879,0.00014999,2]
[422879216,1779561032000,-3292.0,0.00014601,2]
[422879231,1779561032000,-500.0,0.00014999,2]
[422879233,1779561032000,-500.0,0.00014999,2]
[422879238,1779561032000,-392.96828556,0.00014999,2]
[422879234,1779561032000,-500.0,0.00014999,2]
[422879232,1779561032000,-465.46765122,0.00014999,2]
[422879223,1779561032000,-2500.0,0.000149,2]
[422879227,1779561032000,-440.36876987,0.00014999,2]
[422879226,1779561032000,-2400.48293206,0.00014939,2]
[422879225,1779561032000,-166.66,0.00014934,2]
[422879220,1779561032000,-988.16,0.00014841,2]
[422879237,1779561032000,-500.0,0.00014999,2]
[422879230,1779561032000,-500.0,0.00014999,2]
[422879221,1779561032000,-168.69113263,0.00014899,2]
[422879217,1779561032000,-166.66,0.00014633,2]
[422879215,1779561032000,-367.0,0.00014466,2]
[422879206,1779561032000,-215.31523495,0.00013627,2]
[422879208,1779561032000,-249.03,0.00013736,2]
[422879209,1779561032000,-1734.36,0.00013741,2]
[422879211,1779561032000,-959.18,0.00014149,2]
[422879228,1779561032000,-500.0,0.00014999,2]
[422879210,1779561032000,-1734.36,0.00014068,2]
[422879212,1779561032000,-166.66,0.00014331,2]
[422879219,1779561032000,-6804.5121,0.000148,2]
[422879218,1779561032000,-300.62772343,0.000148,2]
[422879222,1779561032000,-62976.1227,0.000149,2]
[422879224,1779561032000,-197.80820298,0.000149,2]
[422879214,1779561032000,-200.0,0.00014429,2]
[422879244,1779561038000,-106.31757221,0.00014999,2]